bitfinex/quotes_SOLUSD_20230702
["timestamp","ask_amount","ask_price","bid_price","bid_amount"]
[1688311505509,2.0,18.97,18.961,12.20005]
[1688311505809,2.0,18.96,18.939,22.334]
[1688311506020,2.0,18.96,18.94,12.21358]
[1688311506229,2.0,18.97,18.949,22.323]
[1688311506403,20.0,18.979,18.949,22.323]
[1688311506602,2.0,18.99,18.95,4.38]
[1688311506799,2.0,18.99,18.966,22.303]
[1688311507022,2.0,19.0,18.966,22.303]
[1688311507226,2.0,19.001,18.97,4.39]
[1688311507429,2.0,19.001,18.979,22.287]
[1688311507717,2.0,18.991,18.979,22.287]
[1688311507899,2.0,18.991,18.98,55.0]
[1688311508101,2.0,19.0,18.981,22.284]
[1688311508311,2.0,18.991,18.982,55.0]
[1688311508614,2.0,18.991,18.98,55.0]
[1688311508816,2.0,19.0,18.98,55.0]
[1688311509017,2.0,19.0,18.96,4.39]
[1688311509018,2.0,19.001,18.981,22.285]
[1688311509216,2.0,18.991,18.982,55.0]
[1688311509424,4.37,19.02,18.982,55.0]
[1688311509425,52.56159622,19.009,18.983,22.282]
[1688311509732,2.0,19.001,18.984,55.0]
[1688311509906,2.0,19.001,18.985,22.28]
[1688311510100,7.39,19.02,18.985,22.28]
[1688311510405,2.0,19.001,18.991,22.273]
[1688311510614,2.0,19.001,18.992,55.0]
[1688311510910,52.56159622,19.019,18.987,22.277]
[1688311511220,2.0,19.011,18.988,55.0]
[1688311511421,7.39,19.03,18.993,22.27]
[1688311511627,2.0,19.011,18.994,55.0]
[1688311511921,2.0,19.011,18.999,22.264]
[1688311512300,2.0,19.021,18.999,22.264]
[1688311512518,2.0,19.011,18.999,22.264]
[1688311512907,2.0,19.021,18.999,22.264]
[1688311513104,2.0,19.011,18.997,22.266]
[1688311513311,2.0,19.001,18.994,22.269]
[1688311513509,4.39,19.03,18.994,22.269]
[1688311513510,2.0,19.011,18.994,22.269]
[1688311513905,2.0,19.011,18.994,21.769]
[1688311514108,2.0,19.021,18.994,21.769]
[1688311514519,2.0,19.021,18.995,55.0]
[1688311514710,2.0,19.021,19.005,22.256]
[1688311514904,4.38,19.05,19.005,22.256]
[1688311514905,2.0,19.031,19.005,22.256]
[1688311515113,2.0,19.021,19.005,22.256]
[1688311515513,4.39,19.04,19.005,22.256]
[1688311515719,2.0,19.021,19.005,22.256]
[1688311517106,2.0,19.031,19.005,22.256]
[1688311517425,2.0,19.021,19.005,22.256]
[1688311517636,2.0,19.031,19.006,55.0]
[1688311517809,2.0,19.022,19.006,55.0]
[1688311518007,2.0,19.022,19.007,22.254]
[1688311518202,2.0,19.022,19.008,77.252]
[1688311518424,2.0,19.032,19.008,22.252]
[1688311518720,20.0,19.039,19.006,55.0]
[1688311518721,2.0,19.022,19.01,22.25]
[1688311519106,2.0,19.032,19.011,55.0]
[1688311519312,2.0,19.022,19.011,77.249]
[1688311519530,2.0,19.022,19.011,55.0]
[1688311519825,2.0,19.022,19.011,22.249]
[1688311520011,2.0,19.032,19.01,22.25]
[1688311520319,2.0,19.022,18.98,4.35]
[1688311520527,2.0,19.012,18.981,198.18964401]
[1688311520717,2.0,19.022,18.99,184.251]
[1688311520905,2.0,19.012,18.99,184.251]
[1688311521308,2.0,19.022,18.99,184.251]
[1688311521826,2.0,19.022,18.99,22.274]
[1688311522014,2.0,19.002,18.99,22.274]
[1688311522535,2.0,19.012,18.978,57.381]
[1688311522711,2.0,19.012,18.984,22.28]
[1688311522915,2.0,19.002,18.984,22.28]
[1688311523417,2.0,18.992,18.973,104.726]
[1688311523607,2.0,19.002,18.982,22.284]
[1688311523810,2.0,18.992,18.982,22.284]
[1688311524028,2.0,18.992,18.979,22.286]
[1688311524525,2.0,18.992,18.96,4.42]
[1688311524723,2.0,18.992,18.979,22.287]
[1688311524953,2.0,19.002,18.979,22.287]
[1688311525237,2.0,19.022,18.98,4.38]
[1688311525430,2.0,19.012,18.99,184.251]
[1688311525937,2.0,19.032,18.99,344.341]
[1688311526126,2.0,19.022,18.991,111.21248772]
[1688311526428,2.0,19.032,19.0,184.153]
[1688311526639,2.0,19.022,19.012,22.248]
[1688311527011,2.0,19.022,19.01,22.25]
[1688311527217,2.0,19.022,19.011,77.249]
[1688311527532,20.0,19.03,19.011,77.25]
[1688311527712,12.03158,19.031,19.011,77.25]
[1688311528541,2.0,19.042,19.011,77.25]
[1688311528832,12.03158,19.03,19.011,77.25]
[1688311529209,2.0,19.042,19.011,232.95]
[1688311529414,12.03158,19.029,19.011,232.95]
[1688311530240,2.0,19.042,19.011,232.95]
[1688311530537,2.0,19.052,19.017,1.0]
[1688311530833,2.0,19.052,19.032,79.44]
[1688311531040,2.0,19.052,19.033,55.0]
[1688311531218,4.39,19.07,19.033,55.0]
[1688311531414,2.0,19.052,19.036,22.22]
[1688311531651,2.0,19.052,19.037,55.0]
[1688311531928,2.0,19.062,19.037,134.423]
[1688311532127,53.39005148,19.084,19.037,134.423]
[1688311532128,52.56159622,19.071,19.037,134.423]
[1688311532330,2.0,19.072,19.054,22.199]
[1688311532539,2.0,19.072,19.055,112.149]
[1688311532835,2.0,19.072,19.058,22.194]
[1688311533035,2.0,19.072,19.059,55.0]
[1688311533229,2.0,19.082,19.059,55.0]
[1688311533425,2.0,19.072,19.059,55.0]
[1688311533620,2.0,19.082,19.06,22.192]
[1688311533831,2.0,19.072,19.051,22.202]
[1688311534130,2.0,19.072,19.053,22.2]
[1688311534528,70.91005148,19.1,19.053,22.2]
[1688311534529,2.0,19.082,19.053,22.2]
[1688311535335,2.0,19.082,19.054,55.0]
[1688311535539,0.5,19.082,19.062,22.19]
[1688311535727,0.5,19.082,19.063,55.0]
[1688311535925,0.5,19.082,19.068,22.182]
[1688311536125,0.5,19.082,19.068,22.183]
[1688311536322,0.5,19.082,19.069,55.0]
[1688311536659,0.5,19.082,19.05,4.39]
[1688311536660,0.5,19.082,19.056,57.146]
[1688311537232,52.52398289,19.088,19.064,22.187]
[1688311537443,53.39005148,19.107,19.064,22.187]
[1688311537444,0.5,19.092,19.064,22.187]
[1688311537920,0.5,19.082,19.065,55.0]
[1688311538125,4.37,19.11,19.065,55.0]
[1688311538126,52.52398289,19.091,19.065,22.186]
[1688311538329,4.39,19.11,19.065,22.186]
[1688311538330,0.5,19.092,19.065,183.528]
[1688311538529,53.02398289,19.092,19.065,183.528]
[1688311538935,0.5,19.092,19.065,183.528]
[1688311539137,4.39,19.11,19.065,183.528]
[1688311539340,52.830744,19.111,19.065,183.528]
[1688311539540,49.830744,19.109,19.065,183.528]
[1688311539922,49.830744,19.117,19.082,22.167]
[1688311540525,49.830744,19.117,19.083,55.0]
[1688311540728,49.830744,19.117,19.083,77.165]
[1688311541923,3.0,19.132,19.083,77.165]
[1688311541924,27.11219631,19.128,19.083,77.165]
[1688311542132,4.39,19.13,19.083,77.165]
[1688311542435,49.830744,19.127,19.083,77.165]
[1688311543121,49.830744,19.127,19.083,22.165]
[1688311544631,12.03158,19.129,19.097,22.149]
[1688311544830,49.830744,19.128,19.105,22.139]
[1688311545031,12.03158,19.129,19.086,3.0]
[1688311545032,23.27135437,19.103,19.102,79.153]
[1688311545442,23.27135437,19.103,19.102,134.153]
[1688311545741,23.27135437,19.103,19.102,77.144]
[1688311546126,61.862324,19.129,19.102,77.144]
[1688311546326,61.862324,19.129,19.098,57.021]
[1688311546327,20.0,19.128,19.105,22.14]
[1688311546682,75.39185511,19.128,19.081,57.071]
[1688311546956,3.0,19.122,19.081,57.071]
[1688311547129,53.03018845,19.121,19.081,57.071]
[1688311547327,53.03018845,19.121,19.084,22.164]
[1688311547522,75.0,19.12,19.084,22.164]
[1688311547738,53.03018845,19.119,19.084,22.164]
[1688311547953,20.0,19.118,19.084,22.164]
[1688311548129,73.03018845,19.12,19.084,22.164]
[1688311548330,108.03018845,19.119,19.084,22.164]
[1688311548655,20.0,19.118,19.094,22.152]
[1688311548853,73.03018845,19.118,19.084,57.061]
[1688311549030,53.03018845,19.117,19.084,22.164]
[1688311549349,4.39,19.1,19.067,57.113]
[1688311549552,4.39,19.1,19.071,22.179]
[1688311549845,3.0,19.113,19.071,22.179]
[1688311549846,53.03018845,19.099,19.071,22.179]
[1688311550031,20.0,19.098,19.071,22.179]
[1688311550232,55.0,19.111,19.071,22.179]
[1688311551049,49.48715039,19.115,19.075,3.0]
[1688311551246,4.37,19.13,19.087,183.317]
[1688311551467,4.37,19.13,19.088,55.0]
[1688311551763,4.37,19.12,19.09,22.158]
[1688311552058,4.37,19.12,19.091,55.0]
[1688311552237,69.48715039,19.12,19.093,22.153]
[1688311552432,12.03158,19.119,19.094,55.0]
[1688311552640,20.0,19.118,19.09,22.157]
[1688311552838,20.0,19.118,19.083,104.122]
[1688311552839,12.03158,19.117,19.088,22.159]
[1688311553054,69.48715039,19.116,19.089,77.159]
[1688311553352,49.48715039,19.116,19.089,22.159]
[1688311553561,12.03158,19.117,19.094,22.152]
[1688311553562,79.137,19.106,19.094,22.152]
[1688311554139,79.137,19.106,19.09,55.0]
[1688311554140,79.137,19.106,19.096,22.15]
[1688311554341,22.14,19.106,19.096,22.15]
[1688311554554,22.14,19.106,19.095,57.03]
[1688311554555,22.14,19.106,19.099,22.146]
[1688311554731,103.953,19.115,19.1,55.0]
[1688311554948,12.03158,19.117,19.1,22.146]
[1688311555238,12.03158,19.117,19.074,155.7]
[1688311555552,12.03158,19.117,19.098,22.148]
[1688311556145,12.03158,19.117,19.094,22.152]
[1688311556451,12.03158,19.117,19.075,3.0]
[1688311556760,49.48715039,19.116,19.091,22.156]
[1688311557061,75.0,19.115,19.091,22.156]
[1688311557355,49.48715039,19.114,19.089,22.158]
[1688311557759,20.0,19.113,19.089,22.158]
[1688311557935,12.03158,19.112,19.089,22.158]
[1688311558132,20.0,19.111,19.089,22.158]
[1688311558339,55.0,19.11,19.089,22.158]
[1688311558537,20.0,19.109,19.089,22.158]
[1688311559175,20.0,19.111,19.089,22.158]
[1688311560063,20.0,19.111,19.096,22.15]
[1688311560447,22.138,19.108,19.074,155.7]
[1688311560645,22.138,19.108,19.084,104.114]
[1688311560850,20.0,19.107,19.087,22.161]
[1688311561350,22.145,19.101,19.087,79.215]
[1688311561556,22.145,19.101,19.085,22.163]
[1688311561750,20.0,19.1,19.079,57.077]
[1688311561946,20.0,19.1,19.085,22.163]
[1688311561947,22.153,19.094,19.085,22.163]
[1688311562160,20.0,19.1,19.085,22.163]
[1688311562345,57.01,19.102,19.085,22.163]
[1688311562346,20.0,19.101,19.085,22.163]
[1688311563244,12.03158,19.1,19.085,22.163]
[1688311563452,20.0,19.099,19.085,22.163]
[1688311563842,20.0,19.107,19.085,22.163]
[1688311564047,20.0,19.107,19.08,57.075]
[1688311564366,12.03158,19.106,19.085,22.163]
[1688311564553,22.147,19.1,19.085,22.163]
[1688311564741,22.145,19.102,19.085,22.163]
[1688311565557,22.145,19.102,19.086,55.0]
[1688311565761,22.145,19.102,19.09,79.2]
[1688311566057,22.145,19.102,19.064,3.0]
[1688311566246,34.17658,19.102,19.087,22.161]
[1688311566451,20.0,19.101,19.078,22.171]
[1688311566661,183.249,19.095,19.064,57.12]
[1688311566850,75.12048372,19.094,19.051,0.06501425]
[1688311567051,183.374,19.082,19.054,22.199]
[1688311567254,75.12048372,19.081,19.054,22.199]
[1688311567568,126.356,19.073,19.044,57.18]
[1688311567855,125.856,19.073,19.05,22.204]
[1688311568262,125.856,19.073,19.048,22.206]
[1688311568474,20.0,19.072,19.048,22.206]
[1688311568651,22.187,19.065,19.048,22.206]
[1688311568841,22.185,19.067,19.048,22.206]
[1688311569047,22.187,19.065,19.048,22.206]
[1688311569948,22.187,19.065,19.03,4.35]
[1688311570164,22.187,19.065,19.043,22.212]
[1688311570463,22.187,19.065,19.041,22.214]
[1688311571759,22.187,19.065,19.041,17.214]
[1688311572556,22.185,19.067,19.043,3.0]
[1688311572756,4.39,19.1,19.053,155.7]
[1688311572962,22.179,19.073,19.059,183.587]
[1688311573166,12.03158,19.102,19.061,155.7]
[1688311573349,104.097,19.088,19.068,57.11]
[1688311573657,104.097,19.088,19.07,22.181]
[1688311573658,126.257,19.088,19.07,22.181]
[1688311573845,126.257,19.088,19.043,29.57875662]
[1688311574048,22.172,19.078,19.067,22.184]
[1688311574247,22.172,19.078,19.054,104.278]
[1688311574447,22.172,19.078,19.06,22.192]
[1688311574657,22.172,19.078,19.06,21.692]
[1688311575072,22.172,19.078,19.061,22.191]
[1688311575254,12.03158,19.077,19.058,22.194]
[1688311575452,183.467,19.072,19.056,22.196]
[1688311575651,183.467,19.072,19.045,57.177]
[1688311575860,20.0,19.071,19.04,22.215]
[1688311576063,183.561,19.062,19.036,57.205]
[1688311576373,183.648,19.053,19.026,57.234]
[1688311576550,51.42713659,19.052,19.03,22.227]
[1688311576749,51.42713659,19.052,19.028,22.229]
[1688311576950,51.42713659,19.052,19.019,104.47]
[1688311576951,183.722,19.045,19.019,104.47]
[1688311577251,183.722,19.045,19.024,22.234]
[1688311577459,22.218,19.038,19.024,22.234]
[1688311577852,57.174,19.047,19.024,22.234]
[1688311578051,22.211,19.045,19.024,22.234]
[1688311578248,104.285,19.054,19.024,22.234]
[1688311578466,22.21,19.046,19.024,22.234]
[1688311578858,57.159,19.052,19.024,22.234]
[1688311579167,4.39,19.07,19.024,22.234]
[1688311579168,22.209,19.046,19.024,22.234]
[1688311580559,22.198,19.056,19.032,3.0]
[1688311580769,57.119,19.066,19.039,183.777]
[1688311581066,22.194,19.059,19.045,22.209]
[1688311581261,22.194,19.059,19.049,22.205]
[1688311581656,22.194,19.059,19.052,22.202]
[1688311581858,22.194,19.059,19.05,55.0]
[1688311581859,22.194,19.059,19.05,22.203]
[1688311582059,22.194,19.059,19.05,22.204]
[1688311582566,22.194,19.059,19.046,22.208]
[1688311583452,20.0,19.058,19.046,22.208]
[1688311583662,42.196,19.058,19.046,183.711]
[1688311583860,4.39,19.08,19.046,183.711]
[1688311584054,56.84380325,19.078,19.047,55.0]
[1688311584368,22.187,19.065,19.054,22.199]
[1688311584681,22.187,19.065,19.056,22.197]
[1688311585164,12.03158,19.071,19.057,55.0]
[1688311585472,22.182,19.07,19.06,22.192]
[1688311585776,12.03158,19.071,19.064,79.311]
[1688311586069,22.177,19.074,19.065,55.0]
[1688311586265,22.174,19.076,19.067,22.184]
[1688311586468,22.174,19.076,19.068,55.0]
[1688311586682,22.169,19.081,19.07,22.18]
[1688311586883,22.167,19.083,19.071,55.0]
[1688311587058,22.167,19.083,19.074,22.176]
[1688311587381,22.167,19.083,19.064,161.345]
[1688311587550,22.167,19.083,19.043,123.66216015]
[1688311587551,22.167,19.083,19.07,22.18]
[1688311587954,22.167,19.083,19.065,55.0]
[1688311588150,22.167,19.083,19.069,22.182]
[1688311588377,20.0,19.082,19.069,22.182]
[1688311588561,79.251,19.079,19.067,22.184]
[1688311588868,20.0,19.078,19.067,22.184]
[1688311589061,22.177,19.074,19.068,77.183]
[1688311589268,22.177,19.074,19.062,22.189]
[1688311589758,22.177,19.074,19.06,22.192]
[1688311590056,79.294,19.068,19.056,22.197]
[1688311590458,22.183,19.068,19.056,22.197]
[1688311591873,22.181,19.07,19.056,79.344]
[1688311592058,22.18,19.071,19.057,55.0]
[1688311592262,22.178,19.073,19.061,79.322]
[1688311592456,22.178,19.073,19.062,55.0]
[1688311592651,22.178,19.073,19.062,77.19]
[1688311593958,22.178,19.073,19.062,22.19]
[1688311595264,22.178,19.073,19.053,57.153]
[1688311595658,22.178,19.073,19.042,25.70927202]
[1688311595659,22.178,19.073,19.058,22.194]
[1688311596773,22.178,19.073,19.059,55.0]
[1688311597075,22.178,19.073,19.063,22.189]
[1688311597275,22.178,19.073,19.064,55.0]
[1688311597574,79.274,19.073,19.063,22.189]
[1688311597876,79.274,19.073,19.054,104.279]
[1688311598275,79.274,19.073,19.06,22.192]
[1688311599273,22.178,19.073,19.06,22.192]
[1688311599483,22.178,19.073,19.061,55.0]
[1688311599779,22.178,19.073,19.064,22.187]
[1688311599961,22.178,19.073,19.067,22.184]
[1688311600159,6.5,19.09,19.067,22.184]
[1688311600361,20.0,19.089,19.071,22.18]
[1688311600882,20.0,19.099,19.071,22.18]
[1688311601060,20.0,19.099,19.072,55.0]
[1688311601260,20.0,19.099,19.072,77.178]
[1688311602475,20.0,19.104,19.072,77.178]
[1688311602780,12.03158,19.103,19.072,77.178]
[1688311603077,12.03158,19.103,19.072,232.878]
[1688311603268,12.03158,19.103,19.072,77.178]
[1688311603871,12.03158,19.103,19.073,155.7]
[1688311604169,27.11219631,19.116,19.082,79.236]
[1688311604373,56.89157963,19.115,19.083,55.0]
[1688311604669,6.55,19.11,19.083,55.0]
[1688311604872,56.89157963,19.109,19.083,22.166]
[1688311605080,59.89157963,19.109,19.083,22.166]
[1688311605381,47.11219631,19.108,19.081,22.168]
[1688311605575,56.89157963,19.107,19.081,22.168]
[1688311605765,84.00377594,19.107,19.079,22.17]
[1688311605963,20.0,19.106,19.079,22.17]
[1688311606177,56.89157963,19.105,19.079,22.17]
[1688311606379,56.89157963,19.108,19.079,22.17]
[1688311606676,56.89157963,19.109,19.079,22.17]
[1688311606884,56.89157963,19.109,19.079,20.67]
[1688311607063,44.0,19.1,19.08,55.0]
[1688311607267,44.0,19.1,19.086,22.162]
[1688311607571,44.0,19.1,19.09,22.157]
[1688311607771,44.0,19.1,19.087,55.0]
[1688311607772,44.0,19.1,19.091,77.156]
[1688311607968,20.0,19.099,19.091,22.156]
[1688311608190,20.0,19.099,19.089,22.158]
[1688311608380,20.0,19.099,19.087,77.16]
[1688311608564,20.0,19.099,19.087,22.16]
[1688311609981,44.0,19.1,19.088,55.0]
[1688311610172,44.0,19.1,19.091,22.156]
[1688311610493,43.5,19.1,19.091,22.156]
[1688311610665,43.5,19.1,19.088,55.0]
[1688311611074,43.5,19.1,19.088,77.16]
[1688311611281,43.5,19.1,19.07,6.5]
[1688311611487,20.0,19.099,19.076,126.332]
[1688311611678,20.0,19.099,19.073,22.177]
[1688311611877,55.0,19.098,19.05,6.52]
[1688311612192,55.0,19.098,19.058,22.194]
[1688311612193,6.55,19.09,19.058,22.194]
[1688311612395,76.89157963,19.089,19.058,20.694]
[1688311612573,75.0,19.089,19.058,20.694]
[1688311613274,75.0,19.089,19.058,77.835]
[1688311613569,75.0,19.089,19.058,20.694]
[1688311613771,54.26608988,19.088,19.058,20.694]
[1688311613974,75.0,19.087,19.058,20.694]
[1688311614203,54.26608988,19.086,19.058,20.694]
[1688311614408,75.0,19.085,19.058,20.694]
[1688311614772,74.26608988,19.085,19.058,20.694]
[1688311614977,54.26608988,19.084,19.058,20.694]
[1688311615385,20.0,19.083,19.058,20.694]
[1688311615987,20.0,19.083,19.059,55.0]
[1688311616292,20.0,19.083,19.066,79.301]
[1688311616492,20.0,19.093,19.073,22.177]
[1688311616789,55.0,19.092,19.073,22.177]
[1688311616989,20.0,19.091,19.073,22.177]
[1688311617291,50.05,19.1,19.073,22.177]
[1688311617480,101.83,19.1,19.074,55.0]
[1688311617683,51.78,19.099,19.076,22.173]
[1688311617986,50.05,19.1,19.076,22.173]
[1688311618191,50.05,19.1,19.077,55.0]
[1688311618384,50.05,19.1,19.077,22.172]
[1688311618695,50.05,19.1,19.078,22.172]
[1688311618899,43.5,19.1,19.079,20.0]
[1688311619108,43.5,19.1,19.085,183.333]
[1688311619407,43.5,19.1,19.09,79.202]
[1688311619791,43.5,19.1,19.091,55.0]
[1688311619979,56.977,19.113,19.093,79.187]
[1688311620291,22.136,19.109,19.099,22.146]
[1688311620494,22.136,19.109,19.097,22.149]
[1688311622188,33.66219631,19.12,19.097,22.149]
[1688311622384,27.11219631,19.131,19.098,75.0]
[1688311622584,22.12,19.123,19.107,79.129]
[1688311623096,34.15158,19.123,19.107,79.129]
[1688311623802,22.12,19.123,19.107,79.129]
[1688311624893,27.11219631,19.135,19.108,55.0]
[1688311625094,27.11219631,19.135,19.116,22.127]
[1688311625291,22.112,19.13,19.116,22.127]
[1688311625807,125.98,19.13,19.115,22.128]
[1688311626096,125.98,19.13,19.112,22.132]
[1688311626298,22.121,19.123,19.114,22.129]
[1688311626490,22.118,19.125,19.114,22.129]
[1688311626800,27.11219631,19.145,19.114,126.084]
[1688311627094,22.11,19.132,19.114,126.084]
[1688311627388,56.897,19.14,19.114,126.084]
[1688311627389,22.109,19.133,19.114,126.084]
[1688311627591,22.109,19.133,19.12,22.122]
[1688311628000,22.106,19.135,19.124,22.118]
[1688311628177,12.03158,19.144,19.124,126.018]
[1688311628381,12.03158,19.144,19.13,182.899]
[1688311628882,56.864,19.151,19.131,55.0]
[1688311629078,22.091,19.148,19.137,22.103]
[1688311629375,12.03158,19.151,19.137,22.103]
[1688311629580,12.03158,19.151,19.138,55.0]
[1688311629803,56.844,19.158,19.141,78.99]
[1688311629984,97.775,19.162,19.141,78.99]
[1688311629985,154.607,19.162,19.142,55.0]
[1688311630181,154.607,19.162,19.148,22.091]
[1688311630182,22.081,19.157,19.148,22.091]
[1688311630382,22.081,19.157,19.14,160.704]
[1688311630606,78.927,19.157,19.14,22.099]
[1688311630891,22.081,19.157,19.145,22.093]
[1688311631686,22.081,19.157,19.145,78.974]
[1688311631993,22.081,19.157,19.145,22.093]
[1688311632781,22.081,19.157,19.145,78.974]
[1688311632994,22.081,19.157,19.146,55.0]
[1688311633207,22.081,19.157,19.145,78.974]
[1688311633208,22.081,19.157,19.145,22.093]
[1688311633882,22.081,19.157,19.142,22.097]
[1688311633883,20.0,19.156,19.142,22.097]
[1688311634106,78.947,19.152,19.142,22.097]
[1688311634283,56.839,19.16,19.142,22.097]
[1688311634488,22.083,19.155,19.142,22.097]
[1688311634993,6.49,19.17,19.142,22.097]
[1688311634994,103.67,19.167,19.142,22.097]
[1688311635184,3.0,19.185,19.142,22.097]
[1688311635185,22.078,19.159,19.142,22.097]
[1688311635383,20.0,19.158,19.142,22.097]
[1688311635606,56.828,19.164,19.143,55.0]
[1688311635898,103.675,19.166,19.143,55.0]
[1688311635899,22.075,19.162,19.149,22.089]
[1688311636096,22.073,19.164,19.15,55.0]
[1688311636305,22.07,19.166,19.154,22.083]
[1688311636492,22.07,19.166,19.155,55.0]
[1688311636684,22.068,19.168,19.158,22.079]
[1688311636887,16.736885,19.157,19.156,56.847]
[1688311637096,16.736885,19.157,19.156,237.655]
[1688311637298,16.736885,19.157,19.156,22.081]
[1688311637692,25.47329187,19.197,19.156,133.93]
[1688311637893,22.048,19.185,19.157,75.0]
[1688311638098,1.45089731,19.2,19.165,182.568]
[1688311638298,104.94289731,19.2,19.166,87.06956]
[1688311638508,22.039,19.193,19.176,78.847]
[1688311638809,22.039,19.193,19.166,87.06956]
[1688311638810,182.305,19.193,19.166,55.0]
[1688311639113,1.45089731,19.2,19.174,22.06]
[1688311639114,22.036,19.196,19.174,22.06]
[1688311639298,56.711,19.203,19.174,22.06]
[1688311639501,22.037,19.195,19.174,22.06]
[1688311640399,22.045,19.188,19.174,22.06]
[1688311640593,22.05,19.184,19.174,22.06]
[1688311640794,22.05,19.184,19.167,56.814]
[1688311640996,22.05,19.184,19.172,22.062]
[1688311641288,125.625,19.184,19.168,22.067]
[1688311641489,22.05,19.184,19.168,78.88]
[1688311641726,20.0,19.194,19.168,78.88]
[1688311641913,22.044,19.189,19.17,6.5]
[1688311642203,22.044,19.189,19.177,22.057]
[1688311642396,56.732,19.196,19.177,22.057]
[1688311642899,56.732,19.196,19.183,22.05]
[1688311643111,22.04,19.192,19.183,22.05]
[1688311643309,22.038,19.195,19.183,22.05]
[1688311643626,20.0,19.194,19.184,55.0]
[1688311643913,103.43,19.212,19.187,22.046]
[1688311644090,22.027,19.204,19.187,125.605]
[1688311644292,22.027,19.204,19.188,55.0]
[1688311644502,22.027,19.204,19.192,22.039]
[1688311644691,22.027,19.204,19.193,55.0]
[1688311644999,22.027,19.204,19.196,22.035]
[1688311645203,22.027,19.204,19.184,56.765]
[1688311645397,22.027,19.204,19.185,55.0]
[1688311645597,22.027,19.204,19.19,22.042]
[1688311646286,3.0,19.223,19.19,22.042]
[1688311646287,98.5586,19.224,19.19,132.105]
[1688311646500,56.673,19.216,19.191,75.0]
[1688311646699,22.016,19.214,19.2,22.03]
[1688311647500,22.016,19.214,19.183,3.0]